fUST/lending_fUST_20240212
["ID","MTS","AMOUNT","RATE_DAILY","PERIOD"]
[313825421,1707741034988,-1759.17236477,0.00018818,3]
[313825422,1707741034997,-231.73732392,0.00018819,2]
[313825461,1707741038444,-1019.11530917,0.00018816,2]
[313825463,1707741038454,-1731.0073444,0.00018819,2]
[313825465,1707741038463,-590.54708248,0.00018819,2]
[313825467,1707741038473,-1948.7295734,0.0001882,2]
[313825469,1707741038482,-175.84860306,0.0001882,2]
[313825471,1707741038491,-232.62797295,0.00018821,2]
[313825473,1707741038500,-821.43357407,0.00018821,2]
[313825475,1707741038509,-190.15557492,0.000189,2]
[313825477,1707741038518,-200.0,0.00019764,2]
[313825479,1707741038528,-174.200021,0.00020095,2]
[313825481,1707741038537,-1768.98,0.00020174,3]
[313825483,1707741038546,-500.0,0.00020182,2]
[313825485,1707741038555,-6564.65,0.00020182,2]
[313825487,1707741038564,-500.0,0.00020182,2]
[313825489,1707741038573,-5155.63,0.00020182,2]
[313825491,1707741038581,-500.0,0.00020182,2]
[313825493,1707741038591,-1203.18964863,0.00020182,2]
[313825495,1707741038600,-184.12,0.00020183,2]
[313825496,1707741038609,-500.0,0.00020183,2]
[313825498,1707741038618,-500.0,0.00020183,2]
[313825500,1707741038627,-949.93,0.00020183,2]
[313825502,1707741038636,-500.0,0.00020183,2]
[313825504,1707741038646,-500.0,0.00020183,2]
[313825506,1707741038655,-500.0,0.00020183,2]
[313825508,1707741038664,-500.0,0.00020183,2]
[313825510,1707741038674,-1013.95,0.00020183,2]
[313825512,1707741038683,-8523.97,0.00020183,2]
[313825514,1707741038692,-500.0,0.00020183,2]
[313825516,1707741038702,-1003.53009862,0.00020183,2]
[313825517,1707741038710,-500.0,0.00020183,2]
[313825518,1707741038720,-500.0,0.00020183,2]
[313825519,1707741038729,-500.0,0.00020183,2]
[313825520,1707741038738,-1520.52,0.00020183,2]
[313825521,1707741038747,-2158.08,0.00020183,2]
[313825522,1707741038756,-3131.91,0.00020183,2]
[313825523,1707741038765,-914.46,0.00020183,2]
[313825524,1707741038775,-535.9,0.00020183,2]
[313825525,1707741038784,-807.81,0.00020183,2]
[313825526,1707741038793,-500.0,0.00020183,2]
[313825527,1707741038802,-551.6,0.00020183,2]
[313825528,1707741038811,-644.91,0.00020183,2]
[313825529,1707741038820,-500.0,0.00020183,2]
[313825530,1707741038829,-15421.03186511,0.00020183,2]
[313825531,1707741038838,-11710.40673103,0.00020184,2]
[313825532,1707741038848,-288.60739896,0.00020289,2]
[313825533,1707741038857,-200.1182246,0.000203,2]
[313825534,1707741038866,-615.47,0.0002038,2]
[313825535,1707741038875,-1338.7,0.0002038,2]
[313825536,1707741038885,-500.0,0.0002038,2]
[313825537,1707741038894,-512.95441057,0.0002038,2]
[313825538,1707741038904,-500.0,0.0002038,2]
[313825539,1707741038913,-504.10162267,0.0002038,2]
[313825540,1707741038922,-500.0,0.0002038,2]
[313825541,1707741038932,-500.0,0.0002038,2]
[313825542,1707741038940,-500.0,0.0002038,2]
[313825543,1707741038950,-500.0,0.0002038,2]
[313825544,1707741038962,-500.0,0.0002038,2]
[313825545,1707741038971,-500.0,0.00020381,2]
[313825546,1707741038980,-500.0,0.00020381,2]
[313825547,1707741038990,-500.0,0.00020381,2]
[313825548,1707741038999,-500.0,0.00020381,2]
[313825549,1707741039008,-500.0,0.00020381,2]
[313825550,1707741039018,-500.0,0.00020381,2]
[313825551,1707741039027,-500.0,0.00020381,2]
[313825552,1707741039036,-500.0,0.00020381,2]
[313825553,1707741039046,-502.23618573,0.00020381,2]
[313825554,1707741039054,-500.0,0.00020381,2]
[313825555,1707741039064,-504.43432643,0.00020381,2]
[313825556,1707741039073,-500.0,0.00020381,2]
[313825557,1707741039082,-500.0,0.00020381,2]
[313825558,1707741039091,-896.59,0.00020381,2]
[313825559,1707741039100,-500.0,0.00020381,2]
[313825560,1707741039111,-500.0,0.00020381,2]
[313825561,1707741039121,-550.44910518,0.00020381,2]
[313825562,1707741039130,-500.0,0.00020381,2]
[313825563,1707741039140,-6226.98,0.00020381,2]
[313825564,1707741039149,-500.0,0.00020381,2]
[313825565,1707741039158,-500.0,0.00020381,2]
[313825566,1707741039168,-235.31696019,0.00020381,2]
[313825567,1707741039179,-500.0,0.00020381,2]
[313825568,1707741039190,-500.0,0.00020381,2]
[313825569,1707741039199,-4501.65,0.00020381,2]
[313825570,1707741039208,-500.0,0.00020381,2]
[313825571,1707741039217,-500.0,0.00020381,2]
[313825572,1707741039226,-500.0,0.00020381,2]
[313825573,1707741039235,-500.0,0.00020381,2]
[313825574,1707741039245,-500.0,0.00020381,2]
[313825575,1707741039254,-3136.89,0.00020381,2]
[313825576,1707741039266,-540.60818931,0.00020381,2]
[313825577,1707741039277,-513.63,0.00020381,2]
[313825578,1707741039287,-500.0,0.00020381,2]
[313825579,1707741039297,-500.27439579,0.00020381,2]
[313825580,1707741039316,-500.0,0.00020381,2]
[313825581,1707741039325,-638.27920947,0.00020381,2]
[313825582,1707741039334,-166.001232,0.00020381,2]
[313825583,1707741039343,-170.60137726,0.00020381,2]
[313825584,1707741039354,-500.0,0.00020381,2]
[313825585,1707741039363,-502.43599396,0.00020381,2]
[313825586,1707741039376,-500.0,0.00020381,2]
[313825587,1707741039394,-500.0,0.00020381,2]
[313825588,1707741039403,-500.0,0.00020381,2]
[313825589,1707741039412,-500.0,0.00020381,2]
[313825590,1707741039421,-500.0,0.00020381,2]
[313825591,1707741039430,-500.0,0.00020381,2]
[313825592,1707741039439,-355.35128898,0.00020381,2]
[313825593,1707741039448,-500.0,0.00020381,2]
[313825594,1707741039457,-506.67565947,0.00020381,2]
[313825595,1707741039466,-500.0,0.00020381,2]
[313825596,1707741039476,-500.0,0.00020381,2]
[313825597,1707741039485,-500.0,0.00020381,2]
[313825598,1707741039494,-156.48963821,0.00020389,2]
[313825599,1707741039503,-155.42620922,0.00020389,2]
[313825600,1707741039512,-158.23495735,0.00020389,2]
[313825601,1707741039521,-1533.61086954,0.00020389,2]
[313825602,1707741039530,-156.763,0.00020389,2]
[313825603,1707741039539,-215.90881372,0.0002039,2]
[313825604,1707741039549,-632.03551486,0.0002039,2]
[313825605,1707741039562,-551.6,0.0002039,2]
[313825606,1707741039571,-283.5197407,0.00020391,3]
[313825607,1707741039581,-500.0,0.00020391,2]
[313825608,1707741039592,-678.94138998,0.00020391,2]
[313825609,1707741039602,-163.17551542,0.00020391,2]
[313825610,1707741039611,-324.18816568,0.00020391,2]
[313825611,1707741039622,-299.6437863,0.00020391,2]
[313825612,1707741039631,-182.68783183,0.00020391,2]
[313825613,1707741039640,-155.31974566,0.00020391,2]
[313825614,1707741039650,-615.90649162,0.00020391,2]
[313825615,1707741039660,-1993.46407044,0.00020391,2]
[313825616,1707741039670,-155.28929301,0.00020391,2]
[313825617,1707741039680,-155.06351006,0.00020391,2]
[313825618,1707741039689,-157.68041091,0.00020391,2]
[313825619,1707741039699,-523.68160801,0.00020391,2]
[313825620,1707741039708,-261.17070193,0.00020391,2]
[313825621,1707741039718,-156.34629283,0.00020391,2]
[313825622,1707741039728,-159.36044535,0.00020391,2]
[313825623,1707741039737,-473.57736101,0.00020391,2]
[313825624,1707741039747,-193.67243952,0.00020391,2]
[313825625,1707741039756,-651.85853467,0.00020391,2]
[313825626,1707741039765,-326.80780786,0.00020391,2]
[313825627,1707741039775,-214.59278982,0.00020391,2]
[313825628,1707741039784,-155.80463483,0.00020391,2]
[313825629,1707741039794,-155.45283434,0.00020391,2]
[313825630,1707741039803,-333.72168749,0.00020391,2]
[313825631,1707741039813,-719.90605727,0.00020391,2]
[313825632,1707741039822,-200.0,0.00020391,2]
[313825633,1707741039832,-227.29446288,0.00020391,2]
[313825634,1707741039841,-333.54490009,0.00020391,2]
[313825635,1707741039850,-1756.21856483,0.00020391,2]
[313825636,1707741039859,-553.18192052,0.00020391,2]
[313825637,1707741039870,-155.44247717,0.00020391,2]
[313825638,1707741039879,-181.31468711,0.00020391,2]
[313825639,1707741039887,-157.39554893,0.00020391,2]
[313825640,1707741039897,-243.85623125,0.00020391,2]
[313825641,1707741039906,-324.97172566,0.00020391,2]
[313825642,1707741039915,-1232.97655624,0.00020391,2]
[313825643,1707741039924,-195.15493052,0.00020391,2]
[313825644,1707741039933,-155.27253705,0.00020391,2]
[313825645,1707741039942,-158.44293377,0.00020391,2]
[313825646,1707741040068,-157.50172379,0.00020391,2]
[313825647,1707741040078,-155.09615962,0.00020391,2]
[313825648,1707741040087,-247.77184131,0.00020391,2]
[313825649,1707741040096,-910.95082709,0.00020391,2]
[313825650,1707741040105,-231.33829203,0.00020391,2]
[313825651,1707741040114,-294.51312657,0.00020391,2]
[313825652,1707741040125,-342.81827767,0.00020391,2]
[313825653,1707741040133,-4615.59928696,0.00020392,2]
[313825654,1707741040142,-300.0,0.00020392,2]
[313825655,1707741040151,-2575.31383642,0.00020392,2]
[313825656,1707741040160,-2092.52534233,0.00020392,2]
[313825657,1707741040170,-1115.66,0.00020392,2]
[313825658,1707741040181,-511.75,0.00020392,2]
[313825659,1707741040191,-1149.48,0.00020392,2]
[313825660,1707741040200,-500.0,0.00020392,2]
[313825661,1707741040209,-500.0,0.00020392,2]
[313825662,1707741040218,-551.6,0.00020392,2]
[313825663,1707741040228,-1636.33940583,0.00020393,2]
[313825664,1707741040237,-500.0,0.00020393,2]
[313825665,1707741040246,-500.0,0.00020393,2]
[313825666,1707741040255,-500.0,0.00020393,2]
[313825667,1707741040264,-500.0,0.00020393,2]
[313825668,1707741040273,-551.6,0.00020393,2]
[313825669,1707741040282,-500.0,0.00020394,2]
[313825670,1707741040291,-500.0,0.00020394,2]
[313825671,1707741040300,-500.0,0.00020394,2]
[313825672,1707741040309,-500.0,0.00020394,2]
[313825673,1707741040317,-501.85170743,0.00020394,2]
[313825674,1707741040326,-500.0,0.00020394,2]
[313825675,1707741040335,-388.07261162,0.00020394,2]
[313825676,1707741040344,-500.0,0.00020394,2]
[313825677,1707741040353,-500.0,0.00020394,2]
[313825678,1707741040362,-500.0,0.00020394,2]
[313825679,1707741040372,-500.0,0.00020394,2]
[313825680,1707741040381,-500.0,0.00020394,2]
[313825681,1707741040390,-500.0,0.00020395,2]
[313825682,1707741040398,-155.95917552,0.00020396,2]
[313825683,1707741040408,-500.0,0.00020456,2]
[313825684,1707741040417,-6564.65,0.00020456,2]
[313825685,1707741040426,-500.0,0.00020456,2]
[313825686,1707741040435,-5155.63,0.00020456,2]
[313825687,1707741040444,-500.0,0.00020457,2]
[313825688,1707741040453,-949.93,0.00020457,2]
[313825689,1707741040462,-500.0,0.00020457,2]
[313825690,1707741040471,-1013.95,0.00020457,2]
[313825691,1707741040480,-8523.97,0.00020457,2]
[313825692,1707741040489,-500.0,0.00020457,2]
[313825693,1707741040498,-500.0,0.00020457,2]
[313825694,1707741040507,-1520.52,0.00020457,2]
[313825695,1707741040516,-2158.08,0.00020457,2]
[313825696,1707741040525,-3131.91,0.00020457,2]
[313825697,1707741040534,-914.46,0.00020457,2]
[313825698,1707741040542,-535.9,0.00020457,2]
[313825700,1707741040551,-807.81,0.00020457,2]
[313825701,1707741040560,-644.91,0.00020457,2]
[313825702,1707741040569,-500.0,0.00020457,2]
[313825703,1707741040578,-1025.00155277,0.0002047,2]
[313825704,1707741040587,-58057.00250232,0.0002047,2]
[313825705,1707741040596,-3344.72892627,0.00020569,2]
[313825706,1707741040605,-551.6,0.00020569,2]
[313825707,1707741040614,-551.6,0.00020569,2]
[313825709,1707741040624,-551.6,0.00020569,2]
[313825710,1707741040633,-551.6,0.00020569,2]
[313825712,1707741040642,-551.6,0.00020569,2]
[313825714,1707741040651,-551.6,0.00020569,2]
[313825715,1707741040660,-2391.3677289,0.0002057,2]
[313825717,1707741040669,-50000.0,0.0002057,2]
[313825719,1707741040677,-50000.0,0.0002057,2]
[313825720,1707741040686,-50000.0,0.0002057,2]
[313825721,1707741040695,-67670.36184932,0.0002057,2]
[313825722,1707741040704,-151.0,0.0002057,2]
[313825723,1707741040713,-1368.95339475,0.0002057,2]
[313825724,1707741040723,-613.921976,0.0002057,2]
[313825725,1707741040732,-613.921976,0.0002057,2]
[313825726,1707741040741,-151.0,0.0002057,2]
[313825727,1707741040751,-151.0,0.0002057,2]
[313825728,1707741040760,-151.0,0.0002057,2]
[313825729,1707741040770,-285.560312,0.0002057,2]
[313825730,1707741040779,-5408.442069,0.0002057,2]
[313825731,1707741040788,-285.560312,0.0002057,2]
[313825732,1707741040797,-5408.442069,0.0002057,2]
[313825733,1707741040806,-2098.476936,0.0002057,2]
[313825734,1707741040816,-2098.476936,0.0002057,2]
[313825735,1707741040825,-2098.476936,0.0002057,2]
[313825736,1707741040834,-2098.476936,0.0002057,2]
[313825737,1707741040843,-151.0,0.0002057,2]
[313825738,1707741040851,-151.0,0.0002057,2]
[313825739,1707741040860,-151.0,0.0002057,2]
[313825740,1707741040870,-151.0,0.0002057,2]
[313825741,1707741040880,-155.887864,0.0002057,2]
[313825742,1707741040889,-615.47,0.00020654,2]
[313825743,1707741040898,-1338.7,0.00020654,2]
[313825744,1707741040907,-500.0,0.00020654,2]
[313825745,1707741040916,-500.0,0.00020654,2]
[313825746,1707741040924,-500.0,0.00020654,2]
[313825747,1707741040934,-500.0,0.00020655,2]
[313825748,1707741040943,-500.0,0.00020655,2]
[313825749,1707741040952,-500.0,0.00020655,2]
[313825750,1707741040960,-500.0,0.00020655,2]
[313825751,1707741040969,-500.0,0.00020655,2]
[313825752,1707741040979,-896.59,0.00020655,2]
[313825753,1707741040988,-6226.98,0.00020655,2]
[313825754,1707741040997,-500.0,0.00020655,2]
[313825755,1707741041007,-4501.65,0.00020655,2]
[313825756,1707741041016,-500.0,0.00020655,2]
[313825757,1707741041025,-500.0,0.00020655,2]
[313825758,1707741041034,-3136.89,0.00020655,2]
[313825759,1707741041043,-513.63,0.00020655,2]
[313825760,1707741041052,-500.0,0.00020655,2]
[313825761,1707741041061,-500.0,0.00020655,2]
[313825762,1707741041070,-617.53,0.00020655,2]
[313825763,1707741041080,-531.93805743,0.00020655,2]
[313825764,1707741041089,-1115.66,0.00020666,2]
[313825765,1707741041098,-511.75,0.00020666,2]
[313825766,1707741041107,-1149.48,0.00020666,2]
[313825767,1707741041116,-500.0,0.00020666,2]
[313825768,1707741041127,-551.6,0.00020666,2]
[313825769,1707741041136,-151.0,0.00020667,2]
[313825770,1707741041145,-500.0,0.00020668,2]
[313825771,1707741041156,-500.0,0.00020668,2]
[313825772,1707741041165,-500.0,0.00020668,2]
[313825773,1707741041174,-488.04280479,0.00020668,2]
[313825774,1707741041187,-271.08,0.00020668,2]
[313825775,1707741041196,-613.921976,0.00020668,2]
[313825776,1707741041205,-613.921976,0.00020668,2]
[313825777,1707741041214,-151.0,0.00020668,2]
[313825778,1707741041225,-151.0,0.00020668,2]
[313825779,1707741041235,-151.0,0.00020668,2]
[313825780,1707741041244,-285.560312,0.00020668,2]
[313825781,1707741041253,-5408.442069,0.00020668,2]
[313825782,1707741041264,-285.560312,0.00020668,2]
[313825783,1707741041274,-5408.442069,0.00020668,2]
[313825784,1707741041283,-2098.476936,0.00020668,2]
[313825785,1707741041292,-2098.476936,0.00020668,2]
[313825786,1707741041301,-151.0,0.00020668,2]
[313825787,1707741041311,-500.0,0.00020669,2]
[313825788,1707741041320,-551.6,0.00020721,2]
[313825789,1707741041330,-551.6,0.00020721,2]
[313825790,1707741041339,-44444.0,0.00020722,2]
[313825791,1707741041349,-6564.65,0.0002073,2]
[313825792,1707741041358,-500.0,0.0002073,2]
[313825793,1707741041368,-151.0,0.0002073,2]
[313825794,1707741041378,-5155.63,0.0002073,2]
[313825795,1707741041387,-151.0,0.00020731,2]
[313825796,1707741041396,-613.921976,0.00020731,2]
[313825797,1707741041405,-613.921976,0.00020731,2]
[313825798,1707741041414,-151.320821,0.00020731,2]
[313825799,1707741041423,-500.0,0.00020731,2]
[313825800,1707741041432,-151.0,0.00020731,2]
[313825801,1707741041441,-151.0,0.00020731,2]
[313825802,1707741041451,-949.93,0.00020731,2]
[313825803,1707741041460,-500.0,0.00020731,2]
[313825804,1707741041469,-285.560312,0.00020731,2]
[313825805,1707741041478,-5408.442069,0.00020731,2]
[313825806,1707741041487,-285.560312,0.00020731,2]
[313825807,1707741041496,-1013.95,0.00020731,2]
[313825808,1707741041505,-5408.442069,0.00020731,2]
[313825809,1707741041514,-8523.97,0.00020731,2]
[313825810,1707741041524,-2098.476936,0.00020731,2]
[313825811,1707741041533,-2098.476936,0.00020731,2]
[313825812,1707741041542,-500.0,0.00020731,2]
[313825813,1707741041551,-500.0,0.00020731,2]
[313825814,1707741041560,-1520.52,0.00020731,2]
[313825815,1707741041570,-2158.08,0.00020731,2]
[313825816,1707741041579,-3131.91,0.00020731,2]
[313825817,1707741041588,-914.46,0.00020731,2]
[313825818,1707741041598,-535.9,0.00020731,2]
[313825819,1707741041608,-807.81,0.00020731,2]
[313825820,1707741041616,-644.91,0.00020731,2]
[313825821,1707741041626,-500.0,0.00020731,2]
[313825822,1707741041635,-8683.55680084,0.000208,2]
[313825823,1707741041644,-500.0,0.00020821,2]
[313825824,1707741041653,-500.0,0.00020821,2]
[313825825,1707741041663,-500.0,0.00020821,2]
[313825826,1707741041672,-500.0,0.00020821,2]
[313825827,1707741041681,-500.0,0.00020821,2]
[313825828,1707741041690,-551.6,0.00020821,2]
[313825829,1707741041699,-551.6,0.00020821,2]
[313825830,1707741041709,-551.6,0.00020821,2]
[313825831,1707741041719,-551.6,0.00020821,2]
[313825832,1707741041728,-551.6,0.00020821,2]
[313825833,1707741041737,-551.6,0.00020821,2]
[313825834,1707741041746,-551.6,0.00020821,2]
[313825835,1707741041755,-551.6,0.00020821,2]
[313825836,1707741041764,-551.6,0.00020821,2]
[313825837,1707741041774,-551.6,0.00020821,2]
[313825838,1707741041783,-551.81906119,0.00020821,2]
[313825839,1707741041792,-500.0,0.00020822,2]
[313825840,1707741041801,-500.0,0.00020822,2]
[313825841,1707741041810,-500.0,0.00020822,2]
[313825842,1707741041819,-500.0,0.00020822,2]
[313825843,1707741041828,-500.0,0.00020822,2]
[313825844,1707741041837,-210.21827643,0.00020822,2]
[313825845,1707741041847,-500.0,0.00020822,2]
[313825846,1707741041856,-500.0,0.00020822,2]
[313825847,1707741041865,-182.39351226,0.00020822,2]
[313825848,1707741041874,-612.69033235,0.00020822,2]
[313825849,1707741041882,-500.0,0.00020822,2]
[313825850,1707741041891,-500.0,0.00020822,2]
[313825851,1707741041900,-213.732327,0.00020822,2]
[313825852,1707741041909,-500.0,0.00020822,2]
[313825853,1707741041918,-500.0,0.00020822,2]
[313825854,1707741041927,-500.0,0.00020822,2]
[313825855,1707741041936,-238.91256822,0.00020822,2]
[313825856,1707741041945,-622.25890534,0.00020822,2]
[313825857,1707741041954,-500.0,0.00020822,2]
[313825858,1707741041963,-500.0,0.00020822,2]
[313825859,1707741041972,-500.0,0.00020822,2]
[313825860,1707741041981,-500.0,0.00020822,2]
[313825861,1707741041991,-500.0,0.00020822,2]
[313825862,1707741042000,-500.0,0.00020822,2]
[313825863,1707741042009,-535.02203685,0.00020822,2]
[313825864,1707741042018,-500.0,0.00020822,2]
[313825865,1707741042027,-500.0,0.00020822,2]
[313825866,1707741042036,-500.0,0.00020822,2]
[313825867,1707741042045,-500.0,0.00020822,2]
[313825868,1707741042054,-500.0,0.00020822,2]
[313825869,1707741042063,-266.68091595,0.00020822,2]
[313825870,1707741042072,-500.0,0.00020822,2]
[313825871,1707741042080,-500.0,0.00020822,2]
[313825872,1707741042089,-500.0,0.00020822,2]
[313825873,1707741042098,-531.25945425,0.00020822,2]
[313825874,1707741042107,-622.84787018,0.00020822,2]
[313825875,1707741042117,-500.0,0.00020822,2]
[313825876,1707741042126,-500.0,0.00020822,2]
[313825877,1707741042136,-852.26859242,0.00020822,2]
[313825878,1707741042145,-500.0,0.00020822,2]
[313825879,1707741042154,-500.0,0.00020822,2]
[313825880,1707741042163,-500.0,0.00020822,2]
[313825881,1707741042173,-500.0,0.00020822,2]
[313825882,1707741042183,-500.0,0.00020822,2]
[313825883,1707741042192,-500.0,0.00020822,2]
[313825884,1707741042202,-644.09206779,0.00020822,2]
[313825885,1707741042211,-852.26859242,0.00020822,2]
[313825886,1707741042219,-500.0,0.00020822,2]
[313825887,1707741042229,-500.0,0.00020822,2]
[313825888,1707741042238,-500.0,0.00020822,2]
[313825889,1707741042247,-500.0,0.00020822,2]
[313825890,1707741042257,-534.68500722,0.00020822,2]
[313825891,1707741042266,-500.0,0.00020822,2]
[313825892,1707741042275,-500.0,0.00020822,2]
[313825893,1707741042284,-500.0,0.00020822,2]
[313825894,1707741042293,-852.26859242,0.00020822,2]
[313825895,1707741042302,-500.0,0.00020822,2]
[313825896,1707741042311,-500.0,0.00020822,2]
[313825897,1707741042321,-500.0,0.00020822,2]
[313825898,1707741042330,-500.0,0.00020822,2]
[313825899,1707741042339,-852.26859242,0.00020822,2]
[313825900,1707741042348,-500.0,0.00020822,2]
[313825901,1707741042357,-500.0,0.00020822,2]
[313825902,1707741042366,-852.26859242,0.00020822,2]
[313825903,1707741042376,-500.0,0.00020822,2]
[313825904,1707741042385,-298.32698449,0.00020822,2]
[313825905,1707741042393,-500.0,0.00020822,2]
[313825906,1707741042402,-852.26859242,0.00020822,2]
[313825907,1707741042411,-500.0,0.00020822,2]
[313825908,1707741042421,-500.0,0.00020822,2]
[313825909,1707741042430,-500.0,0.00020822,2]
[313825910,1707741042439,-852.26859242,0.00020822,2]
[313825911,1707741042449,-500.0,0.00020822,2]
[313825912,1707741042458,-294.68884938,0.00020822,2]
[313825913,1707741042467,-500.0,0.00020822,2]
[313825914,1707741042476,-500.0,0.00020822,2]
[313825915,1707741042485,-500.0,0.00020822,2]
[313825916,1707741042494,-852.26859242,0.00020822,2]
[313825917,1707741042504,-852.26859242,0.00020822,2]
[313825918,1707741042513,-369.12653356,0.00020822,2]
[313825919,1707741042521,-500.0,0.00020822,2]
[313825920,1707741042530,-852.26859242,0.00020822,2]
[313825921,1707741042539,-500.0,0.00020822,2]
[313825922,1707741042548,-555.00858378,0.00020822,2]
[313825923,1707741042557,-500.0,0.00020822,2]
[313825924,1707741042566,-500.0,0.00020822,2]
[313825925,1707741042575,-852.26859242,0.00020822,2]
[313825926,1707741042584,-500.0,0.00020822,2]
[313825927,1707741042593,-500.0,0.00020822,2]
[313825928,1707741042602,-852.26859242,0.00020822,2]
[313825929,1707741042612,-500.0,0.00020822,2]
[313825930,1707741042621,-852.26859242,0.00020822,2]
[313825931,1707741042630,-500.0,0.00020822,2]
[313825932,1707741042639,-500.0,0.00020822,2]
[313825933,1707741042746,-852.26859242,0.00020822,2]
[313825934,1707741042755,-500.0,0.00020822,2]
[313825935,1707741042764,-852.26859242,0.00020822,2]
[313825936,1707741042774,-852.26859242,0.00020822,2]
[313825937,1707741042783,-500.0,0.00020822,2]
[313825938,1707741042792,-500.0,0.00020822,2]
[313825939,1707741042802,-500.0,0.00020822,2]
[313825940,1707741042811,-852.26859242,0.00020822,2]
[313825941,1707741042821,-500.0,0.00020822,2]
[313825942,1707741042830,-500.0,0.00020822,2]
[313825943,1707741042839,-852.26859242,0.00020822,2]
[313825944,1707741042848,-500.0,0.00020822,2]
[313825945,1707741042857,-852.26859242,0.00020822,2]
[313825946,1707741042866,-500.0,0.00020822,2]
[313825947,1707741042876,-852.26859242,0.00020822,2]
[313825948,1707741042886,-500.0,0.00020822,2]
[313825949,1707741042895,-852.26859242,0.00020822,2]
[313825950,1707741042904,-500.0,0.00020822,2]
[313825951,1707741042913,-852.26859242,0.00020822,2]
[313825952,1707741042922,-517.65996862,0.00020822,2]
[313825953,1707741042931,-500.0,0.00020822,2]
[313825954,1707741042940,-852.26859242,0.00020822,2]
[313825955,1707741042949,-852.26859242,0.00020822,2]
[313825956,1707741042958,-500.0,0.00020822,2]
[313825958,1707741042967,-852.26859242,0.00020822,2]
[313825959,1707741042976,-852.26859242,0.00020822,2]
[313825961,1707741042985,-500.0,0.00020822,2]
[313825964,1707741042994,-852.26859242,0.00020822,2]
[313825965,1707741043003,-852.26859242,0.00020822,2]
[313825966,1707741043013,-500.0,0.00020822,2]
[313825967,1707741043022,-852.26859242,0.00020822,2]
[313825968,1707741043030,-500.0,0.00020822,2]
[313825969,1707741043039,-852.26859242,0.00020822,2]
[313825971,1707741043049,-852.26859242,0.00020822,2]
[313825974,1707741043058,-500.0,0.00020822,2]
[313825976,1707741043067,-852.26859242,0.00020822,2]
[313825978,1707741043076,-852.26859242,0.00020822,2]
[313825979,1707741043085,-852.26859242,0.00020822,2]
[313825981,1707741043094,-500.0,0.00020822,2]
[313825983,1707741043103,-852.26859242,0.00020822,2]
[313825985,1707741043111,-852.26859242,0.00020822,2]
[313825987,1707741043120,-852.26859242,0.00020822,2]
[313825989,1707741043130,-852.26859242,0.00020822,2]
[313825991,1707741043139,-852.26859242,0.00020822,2]
[313825993,1707741043147,-852.26859242,0.00020822,2]
[313825995,1707741043156,-852.26859242,0.00020822,2]
[313825997,1707741043165,-852.26859242,0.00020822,2]
[313825999,1707741043175,-852.26859242,0.00020822,2]
[313826001,1707741043186,-500.0,0.00020822,2]
[313826003,1707741043196,-852.26859242,0.00020822,2]
[313826005,1707741043204,-852.26859242,0.00020822,2]
[313826007,1707741043214,-852.26859242,0.00020822,2]
[313826008,1707741043224,-852.26859242,0.00020822,2]
[313826009,1707741043233,-852.26859242,0.00020822,2]
[313826010,1707741043243,-852.26859242,0.00020822,2]
[313826011,1707741043252,-852.26859242,0.00020822,2]
[313826012,1707741043262,-852.26859242,0.00020822,2]
[313826013,1707741043271,-852.26859242,0.00020822,2]
[313826014,1707741043280,-852.26859242,0.00020822,2]